Cogmind - Beta 13 @@@ ROGUE MODE // 2024.04.05 @ 17:26:41 Player: Johge Result: Destroyed by as-15423 with Assembled Rifle Performance ------------- Evolutions (0) 0 Regions Visited (4) 800 Robots Destroyed (6) 30 Value Destroyed (226) 226 Prototype IDs (0) 0 Alien Tech Used (0) 0 Bonus (0) 0 TOTAL SCORE: 1056 Bonus ------- None Cogmind --------- Core Integrity 0/250 Matter 280/300 Energy 100/100 System Corruption 0% Temperature Cool (0) Movement Core (150) Ox2 Location -9/Mines Parts ------- > --- POWER (1) -------- (None) > --- PROPULSION (2) --- (None) > --- UTILITY (2) ------ Small Storage Unit > --- WEAPON (2) ------- Medium Laser > --- INVENTORY (8) ---- Ion Engine Aluminum Leg Aluminum Leg Large Storage Unit Medium Matter Pod (0) Peak State ------------ > --- POWER ------------ Ion Engine > --- PROPULSION ------- Aluminum Leg Aluminum Leg > --- UTILITY ---------- Heat Sink Small Storage Unit > --- WEAPON ----------- Medium Laser Assault Rifle > --- INVENTORY -------- Ion Engine Aluminum Leg Aluminum Leg Grenade Launcher [Rating: 7] Favorites ----------- Power Ion Engine Engine Ion Engine Propulsion Aluminum Leg Leg Aluminum Leg Utility Small Storage Unit Device Heat Sink Storage Small Storage Unit Weapon Medium Laser Energy Gun Medium Laser Ballistic Gun Assault Rifle Launcher Grenade Launcher Build | -11 -10 -10 -10 -9 ------- Run | Yrd Mat Min Exi Min Slots Evolved . | . . . . . Power . | . . . . . Propulsion . | . . . . . Utility . | . . . . . Weapon . | . . . . . Parts Attached 9 | 6 1 . . 2 Power 1 | 1 . . . . Engine 1 | 1 . . . . Core . | . . . . . Reactor . | . . . . . Propulsion 2 | 2 . . . . Treads . | . . . . . Leg 2 | 2 . . . . Wheel . | . . . . . Hover . | . . . . . Flight . | . . . . . Utility 2 | 1 1 . . . Device 1 | . 1 . . . Storage 1 | 1 . . . . Processor . | . . . . . Hackware . | . . . . . Protection . | . . . . . Artifact . | . . . . . Weapon 4 | 2 . . . 2 Energy Gun 2 | 1 . . . 1 Energy Cannon . | . . . . . Ballistic Gun 1 | 1 . . . . Ballistic Cannon . | . . . . . Launcher 1 | . . . . 1 Special Weapon . | . . . . . Impact Weapon . | . . . . . Slashing Weapon . | . . . . . Piercing Weapon . | . . . . . Special Melee Weapon . | . . . . . Unidentified Prototypes . | . . . . . Parts Lost 6 | . . . . 6 Power 1 | . . . . 1 Propulsion 2 | . . . . 2 Utility 1 | . . . . 1 Weapon 2 | . . . . 2 Highest Loss Streak 4 | . . . . 4 To Critical Strikes . | . . . . . Average Slot Usage (%) 93 | . 87 100 100 67 Engine 13 | . 14 14 14 12 Leg 25 | . 28 28 28 10 Device 11 | . 2 14 14 12 Storage 14 | . 14 14 14 14 Energy Gun 13 | . 14 14 14 7 Ballistic Gun 12 | . 14 14 14 5 Naked Turns . | . . . . . Heaviest Build 16 | 14 15 15 15 16 Greatest Support 20 | 20 20 20 20 20 Greatest Overweight (x) 4 | . . . . 4 Average Overweight (x) . | . . . . 1 Largest Inventory Capacity 8 | 8 8 8 8 8 Average Capacity 7 | 6 8 8 8 8 Most Carried 6 | 5 5 5 6 6 Average Carried 4 | 1 1 5 5 5 Final Capacity 8 | 8 8 8 8 8 Final Carried 6 | 1 5 5 6 5 Class Distribution -------------------- 100% | Mutant Dominant Class ---------------- Mutant | -10/Materials Mutant | -10/Mines Mutant | -10/Exiles Mutant | -9/Mines Resources | -11 -10 -10 -10 -9 ----------- Run | Yrd Mat Min Exi Min Matter Collected 342 | 173 138 . . 31 Remotely . | . . . . . Salvage Created 157 | . 139 . . 18 Parts 8 | . 8 . . . Haulers Intercepted . | . . . . . Recyclers Shooed 2 | . 2 . . . Parts Field Recycled . | . . . . . Retrieved Matter . | . . . . . Parts Self-Destructed . | . . . . . Prevented . | . . . . . Kills | -11 -10 -10 -10 -9 ------- Run | Yrd Mat Min Exi Min Combat Hostiles Destroyed 6 | . 3 . . 3 Guns 4 | . 3 . . 1 AOE 2 | . . . . 2 Classes Destroyed 4 | . 2 . . 2 Builder 1 | . 1 . . . Grunt 3 | . 3 . . . Demolisher 2 | . . . . 2 Assembled 1 | . . . . 1 Best Kill Streak 2 | . 2 . . 2 Combat Bots Only 2 | . 1 . . 2 Max Kills in Single Turn 2 | . 1 . . 2 Gunslinging . | . . . . . Exploded 2 | . . . . 2 Melee . | . . . . . Uniques/NPCs Destroyed . | . . . . . Combat | -11 -10 -10 -10 -9 -------- Run | Yrd Mat Min Exi Min Hostile Shots Fired 66 | . 24 . . 42 Missed 17 | . 5 . . 12 Damage Taken 789 | . 234 . . 555 Core 256 | . 62 . . 194 Absorbed by Shields . | . . . . . Core Remaining (%) 100 | 100 . . . . Volleys Fired 35 | . 17 . 1 17 Largest 2 | . 2 . 2 2 Hottest 70 | . 70 . 70 70 Shots Fired 57 | . 34 . 2 21 Gun 54 | . 34 . 2 18 Cannon . | . . . . . Launcher 3 | . . . . 3 Special . | . . . . . Kinetic 24 | . 17 . 1 6 Thermal 30 | . 17 . 1 12 Explosive 3 | . . . . 3 Electromagnetic . | . . . . . Robot Hit Streak 6 | . 6 . . 6 Robot Miss Streak 4 | . 3 . . 4 Penetration Max . | . . . . . Secondary Targets . | . . . . . Shots Hit Robots 30 | . 20 . . 10 Core Hits 15 | . 9 . . 6 Critical Kills . | . . . . . Critical Parts Destroyed . | . . . . . Critical Strikes 3 | . 2 . . 1 Burn 3 | . 2 . . 1 Melee Attacks . | . . . . . Impact . | . . . . . Slashing . | . . . . . Piercing . | . . . . . Sneak Attacks . | . . . . . Combat Hostiles . | . . . . . Follow-up Attacks . | . . . . . Damage Inflicted 435 | . 272 . . 163 Guns 383 | . 272 . . 111 Cannons . | . . . . . Explosions 52 | . . . . 52 Melee . | . . . . . Ramming . | . . . . . Kinetic 164 | . 138 . . 26 Thermal 219 | . 134 . . 85 Explosive 52 | . . . . 52 Electromagnetic . | . . . . . Impact . | . . . . . Slashing . | . . . . . Piercing . | . . . . . Highest Corruption . | . . . . . Average Corruption . | . . . . . Corruption Purged . | . . . . . Corruption Blocked . | . . . . . Overload Shots . | . . . . . Overflow Damage . | . . . . . Projectiles . | . . . . . Explosions . | . . . . . Melee . | . . . . . Knockbacks . | . . . . . Impact . | . . . . . Kinetic . | . . . . . Secondary . | . . . . . Self-Inflicted Damage . | . . . . . Shots . | . . . . . Rammed . | . . . . . Targets Rammed . | . . . . . Kicked . | . . . . . Crushed . | . . . . . Highest Temperature 243 | . 243 . . 50 Average Temperature 118 | . 132 . . 26 Received Heat Transfer 226 | . 126 . . 100 Siege Activations . | . . . . . Robots Corrupted . | . . . . . Combat Hostiles . | . . . . . Parts Fried . | . . . . . Impact Corruptions . | . . . . . Robots Melted . | . . . . . Combat Hostiles . | . . . . . Parts Melted . | . . . . . Heat Transferred 888 | . 555 . . 333 Parts Sabotaged . | . . . . . Parts Stolen . | . . . . . Parts Stripped . | . . . . . Power Chain Reactions . | . . . . . Alert | -11 -10 -10 -10 -9 ------- Run | Yrd Mat Min Exi Min Peak Influence 109 | . 109 42 . 50 Initial 42 | . . 42 . . Average 34 | . 42 42 . 23 Maximum Alert Level . | . . . . . Low Security (%) 100 | 100 100 100 . 100 Level 1 . | . . . . . Level 2 . | . . . . . Level 3 . | . . . . . Level 4 . | . . . . . Level 5 . | . . . . . High Security . | . . . . . Max Security . | . . . . . Squads Dispatched 2 | . 2 . . . Investigation 1 | . 1 . . . Extermination . | . . . . . Reinforcement 1 | . 1 . . . Assault . | . . . . . Garrison . | . . . . . Intercept . | . . . . . Searches Triggered . | . . . . . Construction Impeded . | . . . . . Haulers Reinforced . | . . . . . Active Scanning Responses . | . . . . . Cargo Convoy Interrupts . | . . . . . Stealth | -11 -10 -10 -10 -9 --------- Run | Yrd Mat Min Exi Min Distress Signals . | . . . . . Communications Jammed . | . . . . . Distress Signals . | . . . . . Times Spotted 13 | . 6 . . 7 Peak Tracking Total 9 | . 2 . . 9 Tactical Retreats 1 | . . . . 1 Traps | -11 -10 -10 -10 -9 ------- Run | Yrd Mat Min Exi Min Traps Triggered . | . . . . . Indirectly . | . . . . . Trap Hack Attempts . | . . . . . Triggered . | . . . . . Disarmed . | . . . . . Reprogrammed . | . . . . . Reused . | . . . . . Traps Extracted . | . . . . . Installed . | . . . . . Triggered . | . . . . . Machines | -11 -10 -10 -10 -9 ---------- Run | Yrd Mat Min Exi Min Machines Disabled . | . . . . . Max in Single Turn . | . . . . . Machines Repaired . | . . . . . Machines Dismantled . | . . . . . Machines Sabotaged . | . . . . . Overloaded Fab Kills . | . . . . . Hacking | -11 -10 -10 -10 -9 --------- Run | Yrd Mat Min Exi Min Machines Accessed 4 | . 3 . 1 . Terminals 2 | . 2 . . . Fabricators . | . . . . . Repair Stations . | . . . . . Recycling Units 1 | . 1 . . . Scanalyzers . | . . . . . Garrison Access . | . . . . . Total Hacks 10 | . 9 . 1 . Successful 6 | . 5 . 1 . Failed 4 | . 4 . . . Catastrophic . | . . . . . Database Lockouts . | . . . . . Manual 2 | . 2 . . . Terminals 7 | . 7 . . . Fabricators . | . . . . . Repair Stations . | . . . . . Recycling Units 2 | . 2 . . . Scanalyzers . | . . . . . Garrison Access . | . . . . . Terminal Hacks 4 | . 3 . 1 . Record 1 | . . . 1 . Level Access Points 1 | . 1 . . . Zone Layout 2 | . 2 . . . Fabricator Hacks . | . . . . . Repair Station Hacks . | . . . . . Recycling Unit Hacks 2 | . 2 . . . Report Inventory 1 | . 1 . . . Retrieve Components 1 | . 1 . . . Scanalyzer . | . . . . . Garrison Access Hacks . | . . . . . Unauthorized Hacks . | . . . . . Terminals . | . . . . . Fabricators . | . . . . . Repair Stations . | . . . . . Recycling Units . | . . . . . Scanalyzers . | . . . . . Garrison Access . | . . . . . Data Cores Recovered . | . . . . . Used . | . . . . . Hacking Detections 2 | . 2 . . . Full Trace Events 2 | . 2 . . . Feedback Events . | . . . . . Feedback Blocked . | . . . . . Robot Schematics Acquired . | . . . . . Robots Built . | . . . . . Authchips . | . . . . . Time . | . . . . . Total Robot Build Rating . | . . . . . Part Schematics Acquired . | . . . . . Parts Built . | . . . . . Authchips . | . . . . . Time . | . . . . . Total Part Build Rating . | . . . . . Parts Repaired . | . . . . . Time . | . . . . . Parts Recycled . | . . . . . Recycled Matter . | . . . . . Retrieved Matter . | . . . . . Retrieved Components 4 | . 4 . . . Parts Scanalyzed . | . . . . . Part Schematics Acquired . | . . . . . Parts Damaged . | . . . . . Bothacking | -11 -10 -10 -10 -9 ------------ Run | Yrd Mat Min Exi Min Used RIF Installer . | . . . . . Robots Hacked . | . . . . . Non-combat . | . . . . . Combat . | . . . . . Robot Hacks Applied . | . . . . . Relay Couplers Released . | . . . . . Fabnet Peak Effective % . | . . . . . Robots Rewired . | . . . . . Allies Hacked . | . . . . . Hacks Repelled . | . . . . . Allies | -11 -10 -10 -10 -9 -------- Run | Yrd Mat Min Exi Min Total Allies . | . . . . . Largest Group . | . . . . . Highest-Rated Group . | . . . . . Highest-Rated Ally . | . . . . . Total Orders . | . . . . . Ally Attacks . | . . . . . Total Damage . | . . . . . Kills . | . . . . . Allies Corrupted . | . . . . . Allies Melted . | . . . . . Intel | -11 -10 -10 -10 -9 ------- Run | Yrd Mat Min Exi Min Robot Analysis Total . | . . . . . Derelict Logs Recovered 2 | . . 1 . 1 Drone Launches . | . . . . . Drone Recoveries . | . . . . . Exploration | -11 -10 -10 -10 -9 ------------- Run | Yrd Mat Min Exi Min Turns Passed 997 | 60 211 191 423 112 Spaces Moved 711 | 50 107 160 350 44 Core 41 | 18 . . . 23 Treads . | . . . . . Legs 670 | 32 107 160 350 21 Wheels . | . . . . . Hover . | . . . . . Flight . | . . . . . Fastest Speed 50 | 50 120 120 120 120 Average Speed 120 | 94 120 120 120 161 Slowest Speed 250 | 120 120 120 120 250 Overloaded Moves . | . . . . . Propulsion Burnouts . | . . . . . Robots Hopped . | . . . . . Cave-ins Triggered . | . . . . . Exploration Rate (%) 33 | 3 21 46 79 16 Regions Visited 4 Branch Regions 3 Pre-discovered Areas 1 | . . 1 . . Known Exits Taken . | . . . . . Unknown Exits Taken 4 | 1 1 1 1 . Scrap Searched . | . . . . . Spaces Dug . | . . . . . Terrain Destroyed 15 | . . . . 15 Melee . | . . . . . Projectile . | . . . . . AOE 15 | . . . . 15 Terrain Rammed . | . . . . . Walls Destroyed . | . . . . . Machines Disabled . | . . . . . Actions | -11 -10 -10 -10 -9 --------- Run | Yrd Mat Min Exi Min Total 790 | 62 155 159 351 63 Wait 26 | . 26 . . . Move 707 | 49 106 159 349 44 Hop . | . . . . . Pick Up 13 | 7 5 . 1 . Fast Attach . | . . . . . Attach 8 | 6 1 . . 1 Detach . | . . . . . Swap 1 | . . . . 1 Drop . | . . . . . Fire 35 | . 17 . 1 17 Melee . | . . . . . Ram . | . . . . . Kick . | . . . . . Crush . | . . . . . Escape Stasis . | . . . . . Rewire . | . . . . . Trap . | . . . . . Miscellaneous . | . . . . . Route ------- -11/Scrapyard -10/Materials (discovered 4 exits: Mat x3 / [*Min]) -10/Mines -10/Exiles (discovered 2 exits: [*Min x2]) -9/Mines History --------- Turn | Location | Event 7 | -11/Scrapyard | Discovered new exit (range 16) 61 | -11/Scrapyard | Entered Materials 248 | -10/Materials | Discovered new exit (range 12) 248 | -10/Materials | Identified exit to Materials 272 | -10/Materials | Entered Mines 316 | -10/Mines | Build established: Mutant 458 | -10/Mines | Deemed a non-threat by the Exiles lab entrance 458 | -10/Mines | Discovered new exit (range 5) 463 | -10/Mines | Entered Exiles 463 | -10/Exiles | Found Exiles lab abandoned 489 | -10/Exiles | Discovered new exit (range 15) 876 | -10/Exiles | Discovered new exit (range 10) 886 | -10/Exiles | Entered Mines 889 | -9/Mines | Assembled infested the area 894 | -9/Mines | Assisted by a Guerilla fighting off Assembled 974 | -9/Mines | Core integrity fell below 50% 979 | -9/Mines | Lost 4 parts (2n2w) 988 | -9/Mines | Core integrity fell below 20% 998 | -9/Mines | Destroyed by as-15423 with Assembled Rifle Last Messages --------------- as-38429 destroyed. Acquired 18 matter. T-07 Excavator is excavating. The unstable cave ceiling collapses. T-07 Excavator is excavating. T-07 Excavator destroyed. Destroyed Shock Absorption System. The unstable cave ceiling collapses. Aluminum Leg destroyed. Assault Rifle destroyed. D-53 Grenadier destroyed. The unstable cave ceiling collapses. Grenade Launcher destroyed. The unstable cave ceiling collapses. Heat Sink destroyed. as-68884 suffers critical hit (Burn). Ion Engine destroyed. Acquired 13 matter. Acquired derelict log, extracted data. Data stored: Storage entrances (x1). Map ----- +----------------------------------------------------+ | | | | | | | | | | | | | | | | | | | | | | | ?????????????????????????????????????????????????? | | ?????????????????????????????????????????????????? | | ?????????????????????????????????????????????????? | | ?????????????????????????????????????????????????? | | ???????????????????????????????####??######??????? | | ???????????????????????????##### #### # #####??? | | ??????????????????????????## # ## ##?? | | ??????????????????????????# """ #?? | | ??????????????????????????# """ #?? | | ??????????????????????????# """ # ##?? | | ????????????????????????### ##??? | | ???????????????????????? ## ### #???? | | ????????????????????????# ####??### # #???? | | ????????????????????????# #???????# ##???? | | ????????????????????????#@####???## ## ##????? | | ????????????????????????# aa #?### ##?????? | | ??????????????????? ## ### # ##????? | | ???????????????# ### ## ## ## # ##???? | | ???????????????## ???## %" #???? | | ????????????????#??????# = # #???? | | ???????????????????????# # #???? | | ???????????????????????# #### # # # ##???? | | ???????????????????????## ####??## # ##????? | | ????????????????????????###???????# # ##?????? | | ??????????????????????????????????# #??????? | | ??????????????????????????????????## ?????? | | ???????????????????????????????????## " ?????? | | ????????????????????????????????????# ???? | | ????????????????????????????????????# ???? | | ????????????????????????????????????## ???? | | ?????????????????????????????????????# # ??? | | ?????????????????????????????????????? ???? | | ?????????????????????????????????????? ?????? | | ??????????????????????????????????????###????????? | | ?????????????????????????????????????????????????? | | ?????????????????????????????????????????????????? | | ?????????????????????????????????????????????????? | | ?????????????????????????????????????????????????? | | ?????????????????????????????????????????????????? | +----------------------------------------------------+ Best States ------------- Heat Dissipation 35 Energy Generation 10 Energy Capacity 250 Matter Stores 300 Matter Capacity 300 Sight Range 16 Terrain Scan Density 10 Evasion (%) 55 Item Schematics ----------------- None Robot Schematics ------------------ None Fabricated ------------ Nothing Alien Tech Used ----------------- None Achievements -------------- None Challenges ------------ None Game ------ Seed SlugMultitargetingThruster Manual? 0 Play Time 00:10:13 Cumulative 11.2 hours Start 2024.04.05 @ 17:18:29 End 2024.04.05 @ 17:26:41 Sessions 1 Manual Loads 0 Difficulty Rogue Special Mode None Game No. 18 Rogue 18 Adventurer 0 Explorer 0 Win Type - Total 0 Types 0/0/0/0/0/0/0/0/0 Lore% 5 Gallery% 16 Achievement% 12 Wizard Run 0 Options --------- Layout 1 ASCII 0 Keyboard 0 Movement Mouse Keybinds 0 Fullscreen 1 Font 24/Smallcaps Map View 50x35 Zoom Use 0% Tactical HUD 0 Map Filters NONE Filters NONE Steam 1 RUN: 228c08f3-fdf8-4b9a-b73d-12945b57dbb4